lending/lending_fUSD_20240410
["ID","MTS","AMOUNT","RATE_DAILY","PERIOD"]
[322066906,1712739057385,-500.0,0.000213,2]
[322066907,1712739057395,-500.0,0.000213,2]
[322066908,1712739057406,-500.0,0.000213,2]
[322066909,1712739057415,-500.0,0.000213,2]
[322066910,1712739057425,-500.0,0.000213,2]
[322066911,1712739057435,-513.89,0.000213,2]
[322066912,1712739057444,-677.27,0.000213,2]
[322066913,1712739057454,-885.74,0.000213,2]
[322066914,1712739057464,-352.1640926,0.000213,2]
[322066915,1712739057473,-1445.14,0.000213,2]
[322066916,1712739057483,-500.0,0.000213,2]
[322066917,1712739057493,-753.45,0.000213,2]
[322066918,1712739057502,-500.0,0.000213,2]
[322066919,1712739057512,-500.0,0.000213,2]
[322066920,1712739057522,-500.0,0.000213,2]
[322066921,1712739057531,-500.0,0.000213,2]
[322066922,1712739057541,-4935.81,0.000213,2]
[322066923,1712739057551,-500.0,0.000213,2]
[322066924,1712739057562,-728.63,0.000213,2]
[322066925,1712739057573,-500.0,0.000213,2]
[322066926,1712739057583,-545.78,0.000213,2]
[322066927,1712739057593,-609.62387733,0.000213,2]
[322066928,1712739057604,-500.0,0.000213,2]
[322066929,1712739057614,-500.0,0.000213,2]
[322066930,1712739057626,-934.77,0.000213,2]
[322066931,1712739057636,-500.0,0.000213,2]
[322066932,1712739057647,-500.0,0.000213,2]
[322066933,1712739057658,-537.35,0.000213,2]
[322066934,1712739057668,-500.0,0.000213,2]
[322066935,1712739057679,-515.08,0.000213,2]
[322066936,1712739057689,-500.0,0.000213,2]
[322066937,1712739057700,-631.39,0.000213,2]
[322066938,1712739057710,-2573.74,0.000213,2]
[322066939,1712739057720,-500.0,0.000213,2]
[322066940,1712739057731,-632.78,0.000213,2]
[322066941,1712739057741,-500.0,0.000213,2]
[322066942,1712739057751,-500.0,0.000213,2]
[322066943,1712739057760,-857.64,0.000213,2]
[322066944,1712739057770,-500.0,0.000213,2]
[322066945,1712739057779,-500.0,0.000213,2]
[322066946,1712739057790,-500.0,0.000213,2]
[322066947,1712739057799,-526.43,0.000213,2]
[322066948,1712739057809,-500.0,0.000213,2]
[322066949,1712739057819,-710.81,0.000213,2]
[322066950,1712739057829,-500.0,0.000213,2]
[322066951,1712739057839,-753.09,0.000213,2]
[322066952,1712739057848,-500.0,0.000213,2]
[322066953,1712739057857,-500.0,0.000213,2]
[322066954,1712739057867,-500.0,0.000213,2]
[322066955,1712739057878,-500.0,0.000213,2]
[322066956,1712739057888,-1404.33,0.000213,2]
[322066957,1712739057899,-500.0,0.000213,2]
[322066958,1712739057910,-500.0,0.000213,2]
[322066959,1712739057920,-500.0,0.000213,2]
[322066960,1712739057931,-500.0,0.000213,2]
[322066961,1712739057941,-627.71,0.000213,2]
[322066962,1712739057952,-404.83432704,0.000213,2]
[322066963,1712739057962,-1405.94,0.000213,2]
[322066964,1712739057973,-530.64,0.000213,2]
[322066965,1712739057983,-500.0,0.000213,2]
[322066966,1712739057994,-3224.915904,0.0002136,2]
[322066967,1712739058003,-802.49,0.00021376,2]
[322066968,1712739058013,-1567.52,0.00021376,2]
[322066969,1712739058023,-500.0,0.00021376,2]
[322066970,1712739058033,-500.0,0.00021376,2]
[322066971,1712739058043,-500.0,0.00021376,2]
[322066972,1712739058052,-500.0,0.00021376,2]
[322066973,1712739058062,-500.0,0.00021376,2]
[322066974,1712739058073,-500.0,0.00021376,2]
[322066975,1712739058083,-500.0,0.00021376,2]
[322066976,1712739058093,-500.0,0.00021376,2]
[322066977,1712739058103,-500.0,0.00021376,2]
[322066978,1712739058114,-500.0,0.00021376,2]
[322066979,1712739058124,-1177.39,0.00021376,2]
[322066980,1712739058134,-996.62,0.00021376,2]
[322066981,1712739058145,-6692.18,0.00021376,2]
[322066982,1712739058156,-1135.82,0.00021376,2]
[322066983,1712739058166,-500.0,0.00021376,2]
[322066984,1712739058176,-973.83,0.00021376,2]
[322066985,1712739058186,-10415.18,0.00021376,2]
[322066986,1712739058198,-500.0,0.00021376,2]
[322066987,1712739058208,-500.0,0.00021376,2]
[322066988,1712739058217,-500.0,0.00021376,2]
[322066989,1712739058227,-150.0,0.00021455,2]
[322066990,1712739058236,-2108.672,0.00021455,2]
[322066991,1712739058246,-150.0,0.000215,2]
[322066992,1712739058255,-652.83262,0.0002155,2]
[322066993,1712739058264,-500.0,0.00021573,2]
[322066994,1712739058274,-500.0,0.00021573,2]
[322066995,1712739058283,-500.0,0.00021573,2]
[322066996,1712739058292,-500.0,0.00021573,2]
[322066997,1712739058301,-309.05383208,0.00021573,2]
[322066998,1712739058311,-500.0,0.00021573,2]
[322066999,1712739058323,-500.0,0.00021573,2]
[322067000,1712739058333,-500.0,0.00021573,2]
[322067001,1712739058342,-500.0,0.00021573,2]
[322067002,1712739058351,-946.69,0.00021573,2]
[322067003,1712739058361,-1419.29,0.00021573,2]
[322067004,1712739058371,-500.0,0.00021573,2]
[322067005,1712739058380,-500.0,0.00021573,2]
[322067006,1712739058390,-439.43422536,0.00021573,2]
[322067007,1712739058399,-625.16,0.00021573,2]
[322067008,1712739058409,-500.0,0.00021573,2]
[322067009,1712739058419,-1482.35,0.00021573,2]
[322067010,1712739058431,-500.0,0.00021573,2]
[322067011,1712739058442,-500.0,0.00021573,2]
[322067012,1712739058452,-861.14,0.00021573,2]
[322067013,1712739058463,-500.0,0.00021573,2]
[322067014,1712739058474,-500.0,0.00021573,2]
[322067015,1712739058485,-528.57,0.00021573,2]
[322067016,1712739058496,-2120.71,0.00021573,2]
[322067017,1712739058506,-500.0,0.00021573,2]
[322067018,1712739058517,-552.2,0.00021573,2]
[322067019,1712739058527,-500.0,0.00021573,2]
[322067020,1712739058537,-2408.96,0.00021573,2]
[322067021,1712739058547,-1276.57,0.00021573,2]
[322067022,1712739058559,-1217.14,0.00021573,2]
[322067023,1712739058571,-2123.86,0.00021573,2]
[322067024,1712739058582,-511.31,0.00021573,2]
[322067025,1712739058592,-572.02,0.00021573,2]
[322067026,1712739058603,-500.0,0.00021573,2]
[322067027,1712739058613,-742.1,0.00021573,2]
[322067028,1712739058624,-1137.02,0.00021573,2]
[322067029,1712739058635,-500.0,0.00021573,2]
[322067030,1712739058646,-1754.38,0.00021573,2]
[322067031,1712739058656,-500.0,0.00021573,2]
[322067032,1712739058668,-984.81,0.00021573,2]
[322067033,1712739058678,-500.0,0.00021573,2]
[322067034,1712739058689,-375.7442369,0.00021573,2]
[322067035,1712739058699,-612.58,0.00021573,2]
[322067036,1712739058709,-619.53,0.00021573,2]
[322067037,1712739058719,-500.0,0.00021573,2]
[322067038,1712739058731,-500.0,0.00021573,2]
[322067039,1712739058742,-530.44,0.00021573,2]
[322067040,1712739058753,-1083.32,0.00021573,2]
[322067041,1712739058764,-500.0,0.00021573,2]
[322067042,1712739058775,-765.23,0.00021573,2]
[322067043,1712739058787,-500.0,0.00021573,2]
[322067044,1712739058798,-500.0,0.00021573,2]
[322067045,1712739058809,-1986.39,0.00021573,2]
[322067046,1712739058821,-521.75,0.00021573,2]
[322067047,1712739058832,-500.0,0.00021573,2]
[322067048,1712739058842,-268.84087194,0.00021573,2]
[322067049,1712739058852,-500.0,0.00021573,2]
[322067050,1712739058862,-500.0,0.00021573,2]
[322067051,1712739058872,-500.0,0.00021573,2]
[322067052,1712739058883,-500.0,0.00021573,2]
[322067053,1712739058893,-774.63,0.00021573,2]
[322067054,1712739058904,-1362.67,0.00021573,2]
[322067055,1712739058916,-500.0,0.00021573,2]
[322067056,1712739058928,-3704.96,0.00021573,2]
[322067057,1712739058939,-500.0,0.00021573,2]
[322067058,1712739058950,-500.0,0.00021573,2]
[322067059,1712739058959,-500.0,0.00021573,2]
[322067060,1712739058971,-500.0,0.00021573,2]
[322067061,1712739058982,-500.0,0.00021573,2]
[322067062,1712739058992,-500.0,0.00021573,2]
[322067063,1712739059003,-500.0,0.00021574,2]
[322067064,1712739059014,-523.72603334,0.00021574,2]
[322067065,1712739059024,-500.0,0.00021574,2]
[322067066,1712739059035,-500.0,0.00021574,2]
[322067067,1712739059047,-500.0,0.00021574,2]
[322067068,1712739059058,-500.0,0.00021574,2]
[322067069,1712739059069,-500.0,0.00021574,2]
[322067070,1712739059078,-500.0,0.00021574,2]
[322067071,1712739059088,-570.79,0.00021574,2]
[322067072,1712739059097,-500.0,0.00021574,2]
[322067073,1712739059106,-500.0,0.00021574,2]
[322067074,1712739059116,-500.0,0.00021574,2]
[322067075,1712739059125,-500.0,0.00021574,2]
[322067076,1712739059135,-500.0,0.00021574,2]
[322067077,1712739059144,-500.0,0.00021574,2]
[322067078,1712739059153,-613.93,0.00021574,2]
[322067079,1712739059163,-500.0,0.00021574,2]
[322067080,1712739059172,-500.0,0.00021574,2]
[322067081,1712739059182,-500.0,0.00021574,2]
[322067082,1712739059192,-500.0,0.00021574,2]
[322067083,1712739059202,-578.03,0.00021574,2]
[322067084,1712739059212,-500.0,0.00021574,2]
[322067085,1712739059221,-500.0,0.00021574,2]
[322067086,1712739059231,-934.61,0.00021574,2]
[322067087,1712739059242,-500.0,0.00021574,2]
[322067088,1712739059253,-150.0,0.00021574,2]
[322067089,1712739059264,-500.0,0.00021574,2]
[322067090,1712739059275,-500.0,0.00021574,2]
[322067091,1712739059286,-616.26,0.00021574,2]
[322067092,1712739059296,-887.99,0.00021574,2]
[322067093,1712739059308,-548.96,0.00021574,2]
[322067094,1712739059319,-500.0,0.00021574,2]
[322067095,1712739059329,-898.59,0.00021574,2]
[322067096,1712739059340,-500.0,0.00021574,2]
[322067097,1712739059350,-500.0,0.00021574,2]
[322067098,1712739059361,-500.0,0.00021574,2]
[322067099,1712739059372,-711.11,0.00021574,2]
[322067100,1712739059382,-683.32,0.00021574,2]
[322067101,1712739059393,-500.0,0.00021574,2]
[322067102,1712739059405,-519.48,0.00021574,2]
[322067103,1712739059415,-500.0,0.00021574,2]
[322067104,1712739059425,-212.85390467,0.00021574,2]
[322067105,1712739059436,-626.89,0.00021574,2]
[322067106,1712739059446,-964.25,0.00021574,2]
[322067107,1712739059457,-458.04,0.00021574,2]
[322067108,1712739059468,-500.0,0.00021574,2]
[322067109,1712739059478,-500.0,0.00021574,2]
[322067110,1712739059488,-425.97664466,0.00021574,2]
[322067111,1712739059499,-424.88689604,0.00021574,2]
[322067112,1712739059509,-671.33,0.00021574,2]
[322067113,1712739059519,-508.86,0.00021574,2]
[322067114,1712739059529,-500.0,0.00021574,2]
[322067115,1712739059540,-547.4,0.00021574,2]
[322067116,1712739059550,-500.0,0.00021574,2]
[322067117,1712739059560,-393.60491771,0.00021574,2]
[322067118,1712739059573,-529.97,0.00021574,2]
[322067119,1712739059582,-500.0,0.00021574,2]
[322067120,1712739059594,-565.15,0.00021574,2]
[322067121,1712739059605,-1021.16,0.00021574,2]
[322067122,1712739059615,-500.0,0.00021574,2]
[322067123,1712739059626,-887.08,0.00021574,2]
[322067124,1712739059637,-500.0,0.00021574,2]
[322067125,1712739059648,-500.0,0.00021574,2]
[322067126,1712739059659,-500.0,0.00021574,2]
[322067127,1712739059669,-500.0,0.00021574,2]
[322067128,1712739059679,-513.89,0.00021574,2]
[322067129,1712739059690,-677.27,0.00021574,2]
[322067130,1712739059701,-885.74,0.00021574,2]
[322067131,1712739059711,-1445.14,0.00021574,2]
[322067132,1712739059721,-500.0,0.00021574,2]
[322067133,1712739059731,-753.45,0.00021574,2]
[322067134,1712739059743,-500.0,0.00021574,2]
[322067135,1712739059754,-500.0,0.00021574,2]
[322067136,1712739059765,-500.0,0.00021574,2]
[322067137,1712739059776,-500.0,0.00021574,2]
[322067138,1712739059788,-4935.81,0.00021574,2]
[322067139,1712739059798,-500.0,0.00021574,2]
[322067140,1712739059807,-728.63,0.00021574,2]
[322067141,1712739059819,-500.0,0.00021574,2]
[322067142,1712739059829,-545.78,0.00021574,2]
[322067143,1712739059839,-500.0,0.00021574,2]
[322067144,1712739059850,-500.0,0.00021574,2]
[322067145,1712739059861,-934.77,0.00021574,2]
[322067146,1712739059871,-500.0,0.00021574,2]
[322067147,1712739059882,-500.0,0.00021574,2]
[322067148,1712739059893,-537.35,0.00021574,2]
[322067149,1712739059904,-500.0,0.00021574,2]
[322067150,1712739059914,-515.08,0.00021574,2]
[322067151,1712739059925,-500.0,0.00021574,2]
[322067152,1712739059935,-631.39,0.00021574,2]
[322067153,1712739059946,-2573.74,0.00021574,2]
[322067154,1712739059956,-500.0,0.00021574,2]
[322067155,1712739059967,-632.78,0.00021574,2]
[322067156,1712739059977,-500.0,0.00021574,2]
[322067157,1712739059988,-500.0,0.00021574,2]
[322067158,1712739059999,-857.64,0.00021574,2]
[322067159,1712739060010,-500.0,0.00021574,2]
[322067160,1712739060020,-500.0,0.00021574,2]
[322067161,1712739060031,-500.0,0.00021574,2]
[322067162,1712739060041,-526.43,0.00021574,2]
[322067163,1712739060052,-500.0,0.00021574,2]
[322067164,1712739060062,-710.81,0.00021574,2]
[322067165,1712739060075,-500.0,0.00021574,2]
[322067166,1712739060086,-753.09,0.00021574,2]
[322067167,1712739060096,-500.0,0.00021574,2]
[322067168,1712739060105,-500.0,0.00021574,2]
[322067169,1712739060114,-500.0,0.00021574,2]
[322067170,1712739060124,-500.0,0.00021574,2]
[322067171,1712739060135,-1404.33,0.00021574,2]
[322067172,1712739060145,-500.0,0.00021574,2]
[322067173,1712739060156,-500.0,0.00021574,2]
[322067174,1712739060168,-500.0,0.00021574,2]
[322067175,1712739060178,-500.0,0.00021574,2]
[322067176,1712739060190,-627.71,0.00021574,2]
[322067177,1712739060201,-1405.94,0.00021574,2]
[322067178,1712739060212,-530.64,0.00021574,2]
[322067179,1712739060222,-802.49,0.0002165,2]
[322067180,1712739060235,-1567.52,0.0002165,2]
[322067181,1712739060246,-500.0,0.0002165,2]
[322067182,1712739060257,-500.0,0.0002165,2]
[322067183,1712739060268,-500.0,0.0002165,2]
[322067184,1712739060278,-500.0,0.0002165,2]
[322067185,1712739060288,-500.0,0.0002165,2]
[322067186,1712739060300,-500.0,0.0002165,2]
[322067187,1712739060310,-500.0,0.0002165,2]
[322067188,1712739060322,-500.0,0.0002165,2]
[322067189,1712739060335,-500.0,0.0002165,2]
[322067190,1712739060345,-500.0,0.0002165,2]
[322067191,1712739060356,-1177.39,0.0002165,2]
[322067192,1712739060367,-996.62,0.0002165,2]
[322067193,1712739060378,-6692.18,0.0002165,2]
[322067194,1712739060389,-1135.82,0.0002165,2]
[322067195,1712739060399,-500.0,0.0002165,2]
[322067196,1712739060409,-973.83,0.0002165,2]
[322067197,1712739060420,-10415.18,0.0002165,2]
[322067198,1712739060431,-500.0,0.0002165,2]
[322067199,1712739060442,-500.0,0.0002165,2]
[322067200,1712739060453,-500.0,0.0002165,2]
[322067201,1712739060464,-1000.0,0.00021698,2]
[322067202,1712739060474,-350.58,0.00021713,2]
[322067203,1712739060485,-407.17,0.00021737,2]
[322067204,1712739060663,-798.0,0.0002178,2]
[322067205,1712739060673,-500.0,0.00021847,2]
[322067206,1712739060684,-500.0,0.00021847,2]
[322067207,1712739060695,-500.0,0.00021847,2]
[322067208,1712739060707,-500.0,0.00021847,2]
[322067209,1712739060718,-500.0,0.00021847,2]
[322067210,1712739060728,-500.0,0.00021847,2]
[322067211,1712739060739,-500.0,0.00021847,2]
[322067212,1712739060751,-500.0,0.00021847,2]
[322067213,1712739060762,-946.69,0.00021847,2]
[322067214,1712739060772,-1419.29,0.00021847,2]
[322067215,1712739060783,-500.0,0.00021847,2]
[322067216,1712739060793,-500.0,0.00021847,2]
[322067217,1712739060804,-625.16,0.00021847,2]
[322067218,1712739060815,-500.0,0.00021847,2]
[322067219,1712739060827,-1482.35,0.00021847,2]
[322067220,1712739060839,-500.0,0.00021847,2]
[322067221,1712739060850,-500.0,0.00021847,2]
[322067222,1712739060861,-861.14,0.00021847,2]
[322067223,1712739060874,-500.0,0.00021847,2]
[322067224,1712739060885,-500.0,0.00021847,2]
[322067225,1712739060895,-528.57,0.00021847,2]
[322067226,1712739060906,-2120.71,0.00021847,2]
[322067227,1712739060917,-500.0,0.00021847,2]
[322067228,1712739060929,-552.2,0.00021847,2]
[322067229,1712739060940,-500.0,0.00021847,2]
[322067230,1712739060951,-2408.96,0.00021847,2]
[322067231,1712739060962,-1276.57,0.00021847,2]
[322067232,1712739060972,-1217.14,0.00021847,2]
[322067233,1712739060982,-2123.86,0.00021847,2]
[322067234,1712739060992,-511.31,0.00021847,2]
[322067235,1712739061002,-572.02,0.00021847,2]
[322067236,1712739061012,-500.0,0.00021847,2]
[322067237,1712739061022,-742.1,0.00021847,2]
[322067238,1712739061033,-1137.02,0.00021847,2]
[322067239,1712739061042,-500.0,0.00021847,2]
[322067240,1712739061053,-1754.38,0.00021847,2]
[322067241,1712739061063,-500.0,0.00021847,2]
[322067242,1712739061077,-984.81,0.00021847,2]
[322067243,1712739061087,-500.0,0.00021847,2]
[322067244,1712739061096,-612.58,0.00021847,2]
[322067245,1712739061106,-619.53,0.00021847,2]
[322067246,1712739061115,-500.0,0.00021847,2]
[322067247,1712739061125,-500.0,0.00021847,2]
[322067248,1712739061134,-530.44,0.00021847,2]
[322067249,1712739061144,-1083.32,0.00021847,2]
[322067250,1712739061153,-500.0,0.00021847,2]
[322067251,1712739061162,-765.23,0.00021847,2]
[322067252,1712739061171,-500.0,0.00021847,2]
[322067253,1712739061181,-500.0,0.00021847,2]
[322067254,1712739061190,-1986.39,0.00021847,2]
[322067255,1712739061200,-521.75,0.00021847,2]
[322067256,1712739061209,-500.0,0.00021847,2]
[322067257,1712739061218,-500.0,0.00021847,2]
[322067258,1712739061228,-641.27781528,0.00021847,2]
[322067259,1712739061238,-500.0,0.00021847,2]
[322067260,1712739061247,-500.0,0.00021847,2]
[322067261,1712739061257,-774.63,0.00021847,2]
[322067262,1712739061266,-1362.67,0.00021847,2]
[322067263,1712739061276,-500.0,0.00021847,2]
[322067264,1712739061285,-3704.96,0.00021847,2]
[322067265,1712739061295,-500.0,0.00021847,2]
[322067266,1712739061304,-389.24331237,0.00021847,2]
[322067267,1712739061314,-500.0,0.00021847,2]
[322067268,1712739061326,-500.0,0.00021847,2]
[322067269,1712739061335,-500.0,0.00021847,2]
[322067270,1712739061344,-500.0,0.00021847,2]
[322067271,1712739061353,-500.0,0.00021848,2]
[322067272,1712739061363,-500.0,0.00021848,2]
[322067273,1712739061372,-500.0,0.00021848,2]
[322067274,1712739061382,-625.42753241,0.00021848,2]
[322067275,1712739061391,-500.0,0.00021848,2]
[322067276,1712739061401,-500.0,0.00021848,2]
[322067277,1712739061411,-169.22798993,0.00021848,2]
[322067278,1712739061421,-570.79,0.00021848,2]
[322067279,1712739061430,-500.0,0.00021848,2]
[322067280,1712739061439,-500.0,0.00021848,2]
[322067281,1712739061450,-500.0,0.00021848,2]
[322067282,1712739061459,-500.0,0.00021848,2]
[322067283,1712739061468,-263.26199225,0.00021848,2]
[322067284,1712739061479,-500.0,0.00021848,2]
[322067285,1712739061488,-613.93,0.00021848,2]
[322067286,1712739061498,-500.0,0.00021848,2]
[322067287,1712739061507,-500.0,0.00021848,2]
[322067288,1712739061517,-500.0,0.00021848,2]
[322067289,1712739061526,-500.0,0.00021848,2]
[322067290,1712739061535,-578.03,0.00021848,2]
[322067291,1712739061544,-500.0,0.00021848,2]
[322067292,1712739061553,-500.0,0.00021848,2]
[322067293,1712739061562,-934.61,0.00021848,2]
[322067294,1712739061573,-500.0,0.00021848,2]
[322067295,1712739061582,-150.0,0.00021848,2]
[322067296,1712739061591,-500.0,0.00021848,2]
[322067297,1712739061600,-500.0,0.00021848,2]
[322067298,1712739061610,-616.26,0.00021848,2]
[322067299,1712739061619,-887.99,0.00021848,2]
[322067300,1712739061628,-548.96,0.00021848,2]
[322067301,1712739061637,-500.0,0.00021848,2]
[322067302,1712739061647,-898.59,0.00021848,2]
[322067303,1712739061657,-181.11641661,0.00021848,2]
[322067304,1712739061666,-500.0,0.00021848,2]
[322067305,1712739061675,-500.0,0.00021848,2]
[322067306,1712739061685,-711.11,0.00021848,2]
[322067307,1712739061694,-292.382285,0.00021848,2]
[322067308,1712739061704,-683.32,0.00021848,2]
[322067309,1712739061713,-500.0,0.00021848,2]
[322067310,1712739061723,-519.48,0.00021848,2]
[322067311,1712739061732,-500.0,0.00021848,2]
[322067312,1712739061743,-626.89,0.00021848,2]
[322067313,1712739061754,-964.25,0.00021848,2]
[322067314,1712739061763,-500.0,0.00021848,2]
[322067315,1712739061772,-500.0,0.00021848,2]
[322067316,1712739061782,-671.33,0.00021848,2]
[322067317,1712739061793,-508.86,0.00021848,2]
[322067318,1712739061802,-500.0,0.00021848,2]
[322067319,1712739061813,-547.4,0.00021848,2]
[322067320,1712739061826,-500.0,0.00021848,2]
[322067321,1712739061836,-529.97,0.00021848,2]
[322067322,1712739061847,-500.0,0.00021848,2]
[322067323,1712739061858,-565.15,0.00021848,2]
[322067324,1712739061868,-1021.16,0.00021848,2]
[322067325,1712739061877,-887.08,0.00021848,2]
[322067326,1712739061887,-500.0,0.00021848,2]
[322067327,1712739061897,-500.0,0.00021848,2]
[322067328,1712739061909,-500.0,0.00021848,2]
[322067329,1712739061919,-500.0,0.00021848,2]
[322067330,1712739061930,-500.0,0.00021848,2]
[322067331,1712739061941,-513.89,0.00021848,2]
[322067332,1712739061951,-677.27,0.00021848,2]
[322067333,1712739061961,-885.74,0.00021848,2]
[322067334,1712739061971,-1445.14,0.00021848,2]
[322067335,1712739061981,-500.0,0.00021848,2]
[322067336,1712739061992,-753.45,0.00021848,2]
[322067337,1712739062001,-646.09352216,0.00021848,2]
[322067338,1712739062012,-500.0,0.00021848,2]
[322067339,1712739062023,-500.0,0.00021848,2]
[322067340,1712739062033,-500.0,0.00021848,2]
[322067341,1712739062042,-4935.81,0.00021848,2]
[322067342,1712739062051,-500.0,0.00021848,2]
[322067343,1712739062061,-728.63,0.00021848,2]
[322067344,1712739062072,-500.0,0.00021848,2]
[322067345,1712739062082,-545.78,0.00021848,2]
[322067346,1712739062093,-171.2593,0.00021848,2]
[322067347,1712739062103,-453.51065179,0.00021848,2]
[322067348,1712739062114,-500.0,0.00021848,2]
[322067349,1712739062126,-934.77,0.00021848,2]
[322067350,1712739062137,-500.0,0.00021848,2]
[322067351,1712739062147,-500.0,0.00021848,2]
[322067352,1712739062158,-537.35,0.00021848,2]
[322067353,1712739062169,-500.0,0.00021848,2]
[322067354,1712739062178,-515.08,0.00021848,2]
[322067355,1712739062189,-500.0,0.00021848,2]
[322067356,1712739062200,-631.39,0.00021848,2]
[322067357,1712739062211,-280.84764,0.00021848,2]
[322067358,1712739062222,-2573.74,0.00021848,2]
[322067359,1712739062233,-500.0,0.00021848,2]
[322067360,1712739062243,-632.78,0.00021848,2]
[322067361,1712739062253,-500.0,0.00021848,2]
[322067362,1712739062263,-500.0,0.00021848,2]
[322067363,1712739062273,-857.64,0.00021848,2]
[322067364,1712739062284,-500.0,0.00021848,2]
[322067365,1712739062293,-500.0,0.00021848,2]
[322067366,1712739062303,-500.0,0.00021848,2]
[322067367,1712739062313,-526.43,0.00021848,2]
[322067368,1712739062325,-500.0,0.00021848,2]
[322067369,1712739062335,-710.81,0.00021848,2]
[322067370,1712739062346,-753.09,0.00021848,2]
[322067371,1712739062355,-500.0,0.00021848,2]
[322067372,1712739062365,-465.16002933,0.00021848,2]
[322067373,1712739062374,-500.0,0.00021848,2]
[322067374,1712739062384,-500.0,0.00021848,2]
[322067375,1712739062396,-500.0,0.00021848,2]
[322067376,1712739062406,-1404.33,0.00021848,2]
[322067377,1712739062416,-500.0,0.00021848,2]
[322067378,1712739062426,-500.0,0.00021848,2]
[322067379,1712739062438,-500.0,0.00021848,2]
[322067380,1712739062450,-500.0,0.00021848,2]
[322067381,1712739062461,-627.71,0.00021848,2]
[322067382,1712739062473,-1405.94,0.00021848,2]
[322067383,1712739062484,-530.64,0.00021848,2]
[322067384,1712739062494,-151.0,0.00021849,2]
[322067385,1712739062505,-652.83263,0.0002186,2]
[322067386,1712739062516,-1250.0,0.000219,2]
[322067387,1712739062526,-165.5813399,0.00021917,2]
[322067388,1712739062536,-374.52,0.00021918,2]
[322067389,1712739062546,-151.0,0.00021918,2]
[322067390,1712739062555,-151.0,0.00021918,2]
[322067391,1712739062566,-151.0,0.00021918,2]
[322067392,1712739062578,-151.0,0.00021918,2]
[322067393,1712739062589,-151.0,0.00021918,2]
[322067394,1712739062599,-151.0,0.00021918,2]
[322067395,1712739062608,-151.0,0.00021918,2]
[322067396,1712739062617,-151.0,0.00021918,2]
[322067397,1712739062626,-155.311975,0.00021918,2]
[322067398,1712739062636,-250.0,0.00021918,2]
[322067399,1712739062645,-250.0,0.00021918,2]
[322067400,1712739062654,-150.0,0.00021918,2]
[322067401,1712739062664,-160.26675506,0.00021918,2]
[322067402,1712739062673,-150.0,0.00021918,2]
[322067403,1712739062683,-230.447379,0.00021918,2]
[322067404,1712739062692,-802.49,0.00021924,2]
[322067405,1712739062701,-1567.52,0.00021924,2]